bitfinex-derivatives/quotes_SOLF0:USTF0_20241103
["timestamp","ask_amount","ask_price","bid_price","bid_amount"]
[1730642807091,3.1119,160.73,160.7,3.1767]
[1730642807281,3.54,160.8,160.7,3.1767]
[1730642807476,22.23,160.8,160.7,1.82]
[1730642807982,3.1122,160.71,160.7,1.82]
[1730642808885,3.54,160.73,160.7,1.82]
[1730642808886,3.1119,160.73,160.7,1.82]
[1730642809693,3.54,160.75,160.7,1.82]
[1730642809886,3.1122,160.71,160.7,1.82]
[1730642816600,18.69,160.73,160.56,3.1151]
[1730642816900,18.69,160.71,160.56,3.1151]
[1730642817390,18.69,160.71,160.55,2.6656]
[1730642817600,3.1142,160.61,160.55,5.7809]
[1730642818885,3.54,160.64,160.55,2.6656]
[1730642819693,3.54,160.64,160.56,3.115]
[1730642819893,3.54,160.64,160.55,2.6656]
[1730642820089,1.0,160.7,160.55,2.6656]
[1730642820388,22.33,160.69,160.55,2.6656]
[1730642820790,22.33,160.69,160.57,3.1148]
[1730642820982,22.33,160.69,160.55,2.6656]
[1730642821999,3.1146,160.59,160.55,2.6656]
[1730642822197,3.64,160.62,160.55,2.6656]
[1730642822495,3.1149,160.58,160.55,2.6656]
[1730642822700,3.64,160.61,160.55,2.6656]
[1730642823295,3.64,160.61,160.4,56.0562]
[1730642823597,3.115,160.57,160.47,3.1167]
[1730642823783,3.64,160.56,160.46,7.6696]
[1730642824185,3.64,160.56,160.46,4.0296]
[1730642825698,3.64,160.56,160.46,2.6883]
[1730642826090,18.69,160.55,160.46,2.6883]
[1730642826397,22.33,160.56,160.41,1.3413]
[1730642826696,22.33,160.56,160.42,2.627]
[1730642826898,22.33,160.56,160.4,5.0]
[1730642827196,18.69,160.52,160.4,5.0]
[1730642827398,18.69,160.5,160.4,5.0]
[1730642827696,3.64,160.49,160.4,5.0]
[1730642828398,22.33,160.49,160.39,1.5]
[1730642829790,1.0,160.48,160.39,1.5]
[1730642831603,3.1181,160.41,160.39,1.5]
[1730642831793,6.7581,160.41,160.39,1.5]
[1730642832107,3.64,160.41,160.39,1.5]
[1730642834404,6.7582,160.41,160.39,1.5]
[1730642835303,3.1182,160.4,160.39,1.5]
[1730642837705,21.8082,160.4,160.39,1.5]
[1730642842506,21.8082,160.4,160.39,1.4779]
[1730642843616,18.69,160.4,160.29,5.0]
[1730642844603,18.69,160.36,160.29,5.0]
[1730642844803,18.69,160.34,160.29,5.0]
[1730642845003,21.8095,160.34,160.29,5.0]
[1730642845206,3.64,160.33,160.29,5.0]
[1730642846713,22.33,160.33,160.29,5.0]
[1730642847311,3.64,160.33,160.29,5.0]
[1730642847712,18.69,160.43,160.29,5.0]
[1730642847913,3.1187,160.38,160.32,3.1197]
[1730642848109,22.33,160.37,160.3,2.6168]
[1730642848416,3.1196,160.34,160.3,2.6168]
[1730642848619,3.64,160.33,160.29,5.0]
[1730642850314,22.33,160.33,160.29,5.0]
[1730642850517,3.64,160.33,160.29,5.0]
[1730642851113,3.1196,160.34,160.29,5.0]
[1730642851314,3.68,160.32,160.29,5.0]
[1730642851714,3.1201,160.31,160.25,3.121]
[1730642851914,3.68,160.32,160.21,4.1058]
[1730642852313,3.1201,160.31,160.26,3.1209]
[1730642853324,3.68,160.32,160.21,4.1058]
[1730642853325,6.7998,160.32,160.24,3.1213]
[1730642853621,6.7998,160.32,160.21,4.1058]
[1730642853809,3.68,160.32,160.21,4.1058]
[1730642854426,3.12,160.31,160.28,3.1204]
[1730642855714,3.12,160.31,160.27,3.1206]
[1730642856112,3.68,160.33,160.21,4.1058]
[1730642856322,3.68,160.34,160.21,4.1058]
[1730642856730,3.1199,160.32,160.28,3.1204]
[1730642857107,3.68,160.34,160.29,2.6614]
[1730642857314,3.1199,160.32,160.29,5.7817]
[1730642857912,3.1202,160.3,160.29,2.6614]
[1730642859327,3.68,160.34,160.29,2.6614]
[1730642859622,22.37,160.34,160.21,1.3607]
[1730642859833,3.1201,160.31,160.22,2.7067]
[1730642860018,22.37,160.34,160.22,2.7067]
[1730642860421,22.37,160.34,160.25,3.1211]
[1730642860615,22.37,160.34,160.22,2.7067]
[1730642861429,18.69,160.39,160.22,2.7067]
[1730642861630,18.69,160.37,160.22,2.7067]
[1730642862214,18.69,160.4,160.22,2.7067]
[1730642862421,3.68,160.39,160.22,2.7067]
[1730642862621,3.1195,160.34,160.3,3.1201]
[1730642862927,3.68,160.36,160.31,2.6048]
[1730642863128,3.68,160.35,160.31,2.6048]
[1730642863735,3.1196,160.33,160.31,2.6048]
[1730642864119,3.68,160.35,160.31,2.6048]
[1730642864323,3.1198,160.32,160.31,2.6048]
[1730642864829,3.68,160.35,160.31,2.6048]
[1730642865918,3.1199,160.32,160.25,3.1211]
[1730642866121,3.68,160.35,160.22,2.6079]
[1730642866526,3.1203,160.3,160.26,3.1209]
[1730642866727,3.68,160.35,160.22,2.6079]
[1730642867130,3.1203,160.3,160.25,3.121]
[1730642867536,3.68,160.35,160.25,3.121]
[1730642868029,3.1203,160.3,160.25,3.121]
[1730642868225,3.68,160.35,160.26,3.1209]
[1730642869325,3.1203,160.3,160.26,3.1209]
[1730642870530,18.69,160.37,160.22,2.6079]
[1730642870733,3.68,160.36,160.22,2.6079]
[1730642871141,3.1201,160.31,160.22,2.6079]
[1730642871639,3.68,160.36,160.22,2.6079]
[1730642872139,3.12,160.31,160.28,3.1204]
[1730642872436,3.68,160.36,160.22,2.6079]
[1730642872630,3.1196,160.34,160.31,3.1199]
[1730642872836,3.1196,160.34,160.32,1.3838]
[1730642873237,3.1196,160.33,160.32,1.3838]
[1730642873431,3.68,160.36,160.25,3.68]
[1730642873637,3.68,160.36,160.26,1.3838]
[1730642873840,3.68,160.36,160.28,3.1205]
[1730642874342,3.1203,160.3,160.26,1.3838]
[1730642874739,3.68,160.36,160.26,1.3838]
[1730642874940,3.12,160.31,160.28,3.1205]
[1730642876128,3.68,160.36,160.27,3.1207]
[1730642876326,3.68,160.36,160.26,1.3838]
[1730642876740,22.37,160.36,160.26,1.3838]
[1730642877132,22.37,160.36,160.27,3.1207]
[1730642877332,3.68,160.36,160.26,1.3838]
[1730642878131,18.69,160.39,160.26,1.3838]
[1730642878132,8.33824261,160.41,160.26,1.3838]
[1730642878439,3.68,160.41,160.26,1.3838]
[1730642878632,3.68,160.41,160.27,3.68]
[1730642878937,3.68,160.41,160.28,1.3996]
[1730642879144,3.1189,160.37,160.32,3.1197]
[1730642879342,3.1189,160.37,160.28,1.3996]
[1730642879343,18.69,160.4,160.29,1.3807]
[1730642879533,22.37,160.39,160.29,1.3807]
[1730642879738,3.1198,160.32,160.29,1.3807]
[1730642880350,3.1201,160.31,160.29,1.3807]
[1730642880933,3.1202,160.3,160.29,1.3807]
[1730642881339,3.68,160.33,160.29,1.3807]
[1730642881540,3.12,160.31,160.29,1.3807]
[1730642881742,3.68,160.33,160.29,1.3807]
[1730642882140,3.1199,160.32,160.29,1.3807]
[1730642882556,3.68,160.33,160.29,1.3807]
[1730642882747,18.69,160.41,160.29,1.3807]
[1730642882949,18.69,160.39,160.29,1.3807]
[1730642883658,3.1193,160.35,160.29,4.501]
[1730642883955,1.3185,160.43,160.29,1.3807]
[1730642883956,3.6,160.37,160.29,1.3807]
[1730642884142,18.69,160.47,160.29,1.3807]
[1730642884550,64.6707143,160.48,160.29,1.3807]
[1730642885244,83.3607143,160.48,160.29,1.3807]
[1730642885850,3.1182,160.41,160.36,3.119]
[1730642886251,3.6,160.43,160.29,1.3807]
[1730642886448,3.6,160.42,160.29,1.3807]
[1730642887459,3.6,160.42,160.32,3.1195]
[1730642887967,1.3902,160.47,160.33,1.3113]
[1730642888169,61.0707143,160.48,160.33,1.3113]
[1730642888170,61.0707143,160.48,160.33,4.9113]
[1730642888471,3.1173,160.44,160.36,3.1185]
[1730642888674,64.6707143,160.48,160.37,1.3817]
[1730642889072,64.6707143,160.48,160.38,4.4161]
[1730642889869,3.117,160.45,160.38,4.4161]
[1730642890076,64.6707143,160.48,160.38,4.4161]
[1730642890572,3.1174,160.43,160.38,4.4161]
[1730642891172,3.1172,160.44,160.39,3.118]
[1730642891481,64.6707143,160.48,160.39,3.118]
[1730642891966,3.6,160.48,160.4,3.1178]
[1730642892377,3.117,160.45,160.38,1.2979]
[1730642892568,20.0289,160.53,160.38,1.2979]
[1730642892569,61.04806599,160.53,160.38,1.2979]
[1730642892764,3.1154,160.53,160.38,1.2979]
[1730642892975,3.6,160.59,160.38,1.2979]
[1730642893271,3.6,160.59,160.48,3.1162]
[1730642893468,3.1148,160.56,160.49,1.3237]
[1730642893668,3.6,160.59,160.49,1.3237]
[1730642893970,22.29,160.59,160.49,1.3237]
[1730642894271,22.29,160.59,160.47,1.2934]
[1730642894660,3.116,160.51,160.47,1.2934]
[1730642894870,1.3907,160.6,160.45,3.1169]
[1730642895066,1.3907,160.6,160.44,4.9237]
[1730642895067,22.29,160.59,160.44,4.9237]
[1730642895271,3.1154,160.53,160.45,2.656]
[1730642895481,3.1154,160.53,160.47,3.1164]
[1730642895665,3.1154,160.53,160.45,2.656]
[1730642895977,3.1156,160.53,160.47,3.1164]
[1730642896181,22.29,160.59,160.47,3.1164]
[1730642896968,22.29,160.59,160.48,3.1163]
[1730642897168,3.1151,160.55,160.45,2.656]
[1730642897570,3.6,160.58,160.45,2.656]
[1730642898575,22.29,160.58,160.45,2.656]
[1730642898966,3.1159,160.51,160.45,5.7729]
[1730642899165,3.6,160.53,160.45,2.656]
[1730642900171,3.1161,160.5,160.45,2.656]
[1730642900569,3.1161,160.5,160.45,5.7729]
[1730642901662,3.1158,160.51,160.47,3.1166]
[1730642901867,3.86,160.58,160.45,2.656]
[1730642902165,3.1152,160.55,160.5,3.1158]
[1730642902972,23.89874261,160.72,160.52,3.1155]
[1730642902973,3.1146,160.57,160.52,3.1155]
[1730642903174,3.1146,160.57,160.47,3.86]
[1730642903575,3.1145,160.58,160.53,3.1154]
[1730642903775,1.3031,160.65,160.54,2.6939]
[1730642904081,3.1142,160.6,160.55,3.115]
[1730642904268,3.86,160.64,160.54,2.6939]
[1730642904576,3.114,160.61,160.55,3.1149]
[1730642904779,3.114,160.61,160.54,2.6939]
[1730642904962,3.86,160.64,160.54,2.6939]
[1730642905170,22.55,160.64,160.54,2.6939]
[1730642905375,22.55,160.64,160.37,11.2369]
[1730642905567,1.03249967,160.63,160.41,7.8048]
[1730642905773,3.1158,160.51,160.46,3.1167]
[1730642905966,3.86,160.55,160.41,7.8048]
[1730642906378,3.1159,160.51,160.46,3.1166]
[1730642907077,3.86,160.55,160.42,3.86]
[1730642907471,3.1162,160.49,160.45,3.1169]
[1730642907671,3.1162,160.49,160.42,3.86]
[1730642907976,3.1162,160.49,160.46,3.1167]
[1730642908182,3.1162,160.49,160.42,3.86]
[1730642908384,3.86,160.55,160.41,3.9448]
[1730642908576,3.86,160.55,160.45,3.117]
[1730642908772,3.1156,160.52,160.45,3.117]
[1730642909075,3.86,160.55,160.45,3.117]
[1730642909485,1.3031,160.65,160.42,3.86]
[1730642909682,23.58265819,160.64,160.42,3.86]
[1730642909983,3.1152,160.54,160.5,3.1159]
[1730642910183,3.1152,160.54,160.51,1.4108]
[1730642910484,3.86,160.59,160.51,2.7534]
[1730642910681,3.115,160.56,160.51,2.7534]
[1730642910888,3.86,160.61,160.51,2.7534]
[1730642911184,3.1147,160.57,160.53,3.1152]
[1730642911383,3.86,160.61,160.51,2.7534]
[1730642911583,112.15919199,160.69,160.51,2.7534]
[1730642911794,3.1142,160.6,160.51,2.7534]
[1730642912084,5.2519,160.68,160.51,2.7534]
[1730642912085,3.86,160.64,160.51,2.7534]
[1730642912473,3.86,160.64,160.55,3.115]
[1730642912975,3.86,160.64,160.53,3.86]
[1730642913183,3.1143,160.59,160.55,3.115]
[1730642914188,3.1148,160.57,160.53,3.1154]
[1730642914392,3.86,160.64,160.51,6.6134]
[1730642914885,3.1142,160.6,160.51,6.6134]
[1730642915885,3.1138,160.62,160.51,6.6134]
[1730642916101,3.86,160.67,160.51,6.6134]
[1730642916579,3.86,160.67,160.58,3.1143]
[1730642916976,3.1139,160.61,160.58,3.1143]
[1730642917176,3.86,160.67,160.58,3.1143]
[1730642917381,1.3919,160.68,160.56,3.86]
[1730642917579,5.2519,160.68,160.57,1.3629]
[1730642917888,5.2519,160.68,160.57,4.4775]
[1730642918582,3.1136,160.63,160.57,1.3629]
[1730642918880,61.01419199,160.69,160.57,1.3629]
[1730642919088,3.1129,160.66,160.62,3.1136]
[1730642919286,3.86,160.68,160.58,3.17299887]
[1730642919488,3.86,160.72,160.58,3.17299887]
[1730642919691,3.86,160.72,160.63,3.1133]
[1730642919985,3.1127,160.68,160.61,3.86]
[1730642920184,3.86,160.72,160.61,3.86]
[1730642920577,3.86,160.72,160.63,3.1135]
[1730642920773,3.1132,160.65,160.59,6.5712]
[1730642920984,3.86,160.72,160.59,6.5712]
[1730642921486,3.1135,160.63,160.59,6.5712]
[1730642921690,3.86,160.72,160.59,6.5712]
[1730642921891,1.3223,160.74,160.59,6.5712]
[1730642921892,3.1124,160.69,160.59,6.5712]
[1730642922091,3.86,160.73,160.63,3.1134]
[1730642922286,3.86,160.73,160.59,6.5712]
[1730642922588,3.86,160.73,160.62,3.1135]
[1730642922794,3.86,160.73,160.59,6.5712]
[1730642923189,3.1124,160.69,160.65,3.113]
[1730642923484,3.86,160.73,160.59,6.5712]
[1730642923794,63.55,160.78,160.59,6.5712]
[1730642923795,3.1121,160.71,160.67,3.1126]
[1730642924092,3.86,160.75,160.64,3.86]
[1730642924288,44.86,160.78,160.67,3.1126]
[1730642924289,3.1121,160.71,160.67,3.1126]
[1730642924491,3.86,160.76,160.65,1.3191]
[1730642924884,3.86,160.76,160.66,3.1129]
[1730642925087,3.86,160.76,160.65,1.3191]
[1730642925679,3.1116,160.73,160.67,3.1126]
[1730642925884,20.0308,160.81,160.65,1.3191]
[1730642926194,3.1117,160.73,160.69,3.1123]
[1730642926990,3.86,160.78,160.7,3.112]
[1730642927193,3.86,160.78,160.65,1.3191]
[1730642929088,22.55,160.78,160.65,1.3191]
[1730642929282,22.55,160.78,160.63,3.8]
[1730642929978,22.55,160.78,160.63,6.9134]
[1730642929979,28.7715,160.78,160.63,6.9134]
[1730642930384,28.7715,160.78,160.63,3.8]
[1730642930586,28.7715,160.78,160.64,3.1133]
[1730642930887,28.7715,160.78,160.63,3.8]
[1730642931282,3.1122,160.7,160.65,3.1129]
[1730642931693,3.8,160.73,160.66,3.1129]
[1730642932085,3.8,160.73,160.63,3.8]
[1730642932288,3.1122,160.7,160.65,3.113]
[1730642932795,3.113,160.66,160.61,3.1137]
[1730642933296,3.1121,160.71,160.66,3.1128]
[1730642933489,3.8,160.74,160.66,3.1128]
[1730642933887,8.33824261,160.83,160.66,3.8]
[1730642934087,3.8,160.85,160.67,2.6402]
[1730642934294,4.83379305,160.84,160.67,3.9594]
[1730642934594,3.1112,160.75,160.69,3.1121]
[1730642935194,3.1112,160.75,160.68,3.8]
[1730642935491,3.1112,160.75,160.7,3.1121]
[1730642936392,3.1109,160.77,160.72,3.1116]
[1730642937293,3.1109,160.77,160.73,3.1115]
[1730642937493,3.1104,160.79,160.68,3.8]
[1730642937801,3.8,160.84,160.73,3.1114]
[1730642937989,3.8,160.84,160.68,3.8]
[1730642938487,3.1101,160.81,160.76,3.1108]
[1730642938693,22.49,160.88,160.75,3.8]
[1730642939193,22.49,160.88,160.74,3.1113]
[1730642939796,3.1103,160.8,160.75,3.1111]
[1730642940195,3.1103,160.8,160.73,3.8]
[1730642940401,22.49,160.88,160.74,3.1113]
[1730642940598,3.1105,160.79,160.67,7.02192899]
[1730642940903,22.49,160.88,160.73,3.1114]
[1730642941107,22.49,160.88,160.73,3.8]
[1730642941290,3.1105,160.79,160.73,3.8]
[1730642941797,3.1105,160.79,160.74,3.1112]
[1730642942001,3.8,160.88,160.73,3.8]
[1730642942302,3.8,160.88,160.74,3.1113]
[1730642942695,3.8,160.88,160.73,3.8]
[1730642942994,9.67614261,160.91,160.73,3.8]
[1730642943300,4.83363508,160.9,160.74,1.3599]
[1730642943502,3.8,160.9,160.77,3.1107]
[1730642944696,3.1099,160.82,160.77,3.1107]
[1730642945003,3.8,160.85,160.75,2.6617]
[1730642945798,3.1102,160.8,160.75,2.6617]
[1730642945993,3.8,160.85,160.75,5.7727]
[1730642946298,3.1101,160.81,160.75,5.7727]
[1730642946604,18.69,160.95,160.75,2.6617]
[1730642946805,1.3518,160.95,160.75,2.6617]
[1730642947309,1.3518,160.95,160.75,8.8839]
[1730642947603,3.1078,160.93,160.87,3.1088]
[1730642947796,3.1078,160.93,160.87,6.9088]
[1730642947992,1.3518,160.95,160.87,6.9088]
[1730642948395,60.98690904,160.98,160.87,3.8]
[1730642948396,57.18690904,160.98,160.87,3.8]
[1730642948706,2.2985,160.98,160.87,3.8]
[1730642949200,3.1079,160.93,160.87,6.9088]
[1730642949509,2.2985,160.98,160.84,1.3738]
[1730642949698,3.1075,160.95,160.85,3.8]
[1730642950000,2.2985,160.98,160.85,3.8]
[1730642950205,62.18700177,160.99,160.85,3.8]
[1730642950389,3.107,160.97,160.9,3.1081]
[1730642950588,62.18700177,160.99,160.9,3.8]
[1730642950791,8.34451829,161.03,160.9,3.8]
[1730642951097,8.34451829,161.03,160.97,3.1068]
[1730642951295,8.34451829,161.03,160.98,3.8]
[1730642951498,8.34451829,161.03,161.02,3.1059]
[1730642951801,22.25204879,161.05,160.99,2.7312]
[1730642952905,3.1056,161.04,160.99,2.7312]
[1730642953099,22.25204879,161.05,161.0,3.8]
[1730642953403,22.25204879,161.05,161.01,3.8]
[1730642953599,33.35297045,161.08,161.01,3.8]
[1730642953806,11.62253073,161.19,161.01,3.8]
[1730642953807,1.3539,161.14,161.01,3.8]
[1730642954498,3.1044,161.11,161.05,3.1052]
[1730642954694,3.1044,161.11,161.06,3.8]
[1730642955104,3.1044,161.1,161.06,3.8]
[1730642955407,1.3539,161.14,161.06,3.8]
[1730642955604,3.1043,161.11,161.05,3.1053]
[1730642955907,3.1043,161.11,160.99,2.7312]
[1730642955908,1.3539,161.14,161.03,3.8]
[1730642956113,1.3539,161.14,161.02,3.8]
[1730642957196,1.3539,161.14,160.95,1.3872]
[1730642957499,1.3539,161.14,160.96,3.8]
[1730642958208,3.1057,161.04,160.97,3.1067]
[1730642958408,3.8,161.08,160.97,3.1067]
[1730642958604,3.1057,161.04,160.97,3.1067]
[1730642958801,3.1057,161.04,160.99,3.1065]
[1730642959002,3.1057,161.04,160.96,3.8]
[1730642959298,3.8,161.08,160.96,3.8]
[1730642959517,3.86,161.11,160.96,3.8]
[1730642959712,3.1047,161.09,160.96,3.8]
[1730642960004,1.3539,161.14,160.96,3.8]
[1730642960210,3.1047,161.09,160.97,1.14139036]
[1730642960597,3.1047,161.09,161.04,3.1054]
[1730642960799,1.3539,161.14,160.95,1.3872]
[1730642960993,1.3539,161.14,160.99,3.1064]
[1730642961198,1.3539,161.14,160.99,6.9664]
[1730642961393,3.1057,161.04,160.99,6.9664]
[1730642962002,3.1057,161.04,160.99,3.86]
[1730642962205,3.1057,161.04,161.0,3.1062]
[1730642962706,3.86,161.1,161.01,3.106]
[1730642963108,5.2139,161.14,160.99,3.86]
[1730642963313,3.1053,161.06,161.01,3.1061]
[1730642963903,23.9039,161.14,160.99,3.86]
[1730642964713,23.9039,161.14,161.0,3.1063]
[1730642964714,3.1056,161.04,161.0,3.1063]
[1730642965099,23.9039,161.14,160.99,3.86]
[1730642965319,23.9039,161.14,161.01,3.106]
[1730642965809,18.69,161.21,160.99,3.86]
[1730642966016,1.3526,161.15,161.0,2.6438]
[1730642966713,1.3606,161.14,161.0,2.6438]
[1730642967110,3.1047,161.09,161.0,2.6438]
[1730642967506,1.3606,161.14,161.0,2.6438]
[1730642967710,3.1045,161.1,161.05,3.1052]
[1730642967905,3.1045,161.1,161.04,3.86]
[1730642968415,3.1045,161.1,161.05,3.1053]
[1730642968613,3.1045,161.1,161.04,3.86]
[1730642969512,3.1046,161.09,161.04,3.86]
[1730642969922,1.3606,161.14,161.04,3.86]
[1730642970214,3.1044,161.1,161.04,3.86]
[1730642970519,3.1044,161.1,161.06,3.1051]
[1730642970712,3.1046,161.09,161.06,3.1051]
[1730642970922,1.3606,161.14,161.04,3.86]
[1730642972115,1.3606,161.14,161.05,1.3668]
[1730642972311,3.1038,161.14,161.05,1.3668]
[1730642973106,3.1042,161.11,160.99,5.0]
[1730642973310,1.3926,161.1,160.99,5.0]
[1730642973524,1.3229,161.09,160.99,5.0]
[1730642973711,3.86,161.08,160.99,5.0]
[1730642975014,3.1057,161.04,160.99,5.0]
[1730642975826,3.1057,161.04,161.0,3.1063]
[1730642976528,3.86,161.08,161.0,3.1063]
[1730642976829,3.86,161.08,160.95,2.6846]
[1730642977017,3.1064,161.0,160.95,2.6846]
[1730642977419,1.2774,161.07,160.98,3.1067]
[1730642977614,3.1059,161.03,160.95,2.6846]
[1730642977813,1.2774,161.07,160.98,3.1066]
[1730642978118,1.3229,161.09,160.99,3.86]
[1730642978314,5.2526,161.1,161.03,3.1056]
[1730642978520,5.2526,161.1,161.0,1.2868]
[1730642978720,3.1048,161.08,161.0,1.2868]
[1730642979313,3.1048,161.08,161.05,3.1053]
[1730642979820,3.1048,161.08,161.0,1.2868]
[1730642980338,3.1053,161.06,161.02,3.1059]
[1730642980619,3.1053,161.06,161.0,1.2868]
[1730642982124,3.86,161.13,161.0,1.2868]
[1730642983021,3.1052,161.06,161.03,3.1057]
[1730642984235,3.86,161.13,161.01,3.1061]
[1730642984730,3.86,161.13,160.99,3.86]
[1730642984917,6.5022,161.14,160.99,3.86]
[1730642985316,6.5022,161.14,161.04,3.1054]
[1730642985317,3.1049,161.08,161.04,3.1054]
[1730642985524,3.1049,161.08,160.99,3.86]
[1730642985935,3.1049,161.08,161.05,3.1052]
[1730642989220,3.1046,161.1,161.06,3.1051]
[1730642989422,6.5022,161.14,161.06,3.1051]
[1730642990330,3.1047,161.09,161.06,3.1051]
[1730642991827,3.1047,161.09,161.0,3.12306503]
[1730642991828,3.1044,161.11,161.07,3.1048]
[1730642992129,1.2797,161.15,161.04,3.86]
[1730642992321,1.2797,161.15,161.05,3.9612]
[1730642993429,1.2797,161.15,161.07,3.1048]
[1730642993622,1.2797,161.15,161.05,3.9612]
[1730642994032,3.1044,161.1,161.07,3.1049]
[1730642994931,1.2797,161.15,161.05,2.644]
[1730642995134,3.105,161.07,161.04,3.1054]
[1730642995426,3.105,161.07,161.01,3.86]
[1730642995633,3.1048,161.08,161.05,3.1053]
[1730642995819,3.86,161.13,161.01,3.86]
[1730642996221,3.1052,161.06,161.03,3.1057]
[1730642996417,3.86,161.13,161.0,4.0545]
[1730642996617,3.86,161.13,160.99,5.0]
[1730642996822,3.86,161.13,160.99,8.86]
[1730642996823,18.69,161.12,160.99,8.86]
[1730642997233,18.69,161.12,160.99,5.0]
[1730642997234,3.106,161.02,160.99,5.0]
[1730642997535,3.86,161.07,160.99,5.0]
[1730642997722,1.3126,161.06,160.99,5.0]
[1730642998229,3.1062,161.01,160.99,5.0]
[1730642998622,1.3126,161.06,160.99,5.0]
[1730642998827,3.1063,161.0,160.99,5.0]
[1730642999033,1.3126,161.06,160.99,5.0]
[1730642999231,1.3376,161.1,160.99,5.0]
[1730643000136,3.1051,161.07,161.02,3.1059]
[1730643002436,3.1052,161.06,161.02,3.1059]
[1730643003131,3.1052,161.06,161.03,3.1057]
[1730643003332,3.1052,161.06,160.99,5.0]
[1730643003523,3.1052,161.06,161.02,3.1058]
[1730643004023,1.3376,161.1,161.02,3.1058]
[1730643004224,1.3376,161.1,161.0,3.86]
[1730643004625,3.1051,161.07,161.0,3.86]
[1730643004926,3.1051,161.07,161.03,3.1057]
[1730643005133,3.1051,161.07,161.0,3.86]
[1730643005330,3.1051,161.07,161.04,3.1055]
[1730643005834,3.1045,161.1,161.07,3.1048]
[1730643006127,60.81626661,161.14,161.05,3.86]
[1730643006333,63.92006661,161.14,161.11,3.1041]
[1730643006530,3.1038,161.14,161.11,3.1041]
[1730643006724,3.9929,161.19,161.11,3.1041]
[1730643006921,7.8529,161.19,161.12,3.1038]
[1730643007235,3.9929,161.19,161.06,2.7125]
[1730643007435,3.1033,161.16,161.06,2.7125]
[1730643007643,3.9929,161.19,161.06,2.7125]
[1730643007933,2.6198,161.19,161.06,2.7125]
[1730643008236,3.103,161.18,161.06,2.7125]
[1730643008535,6.4798,161.24,161.09,5.0]
[1730643008731,6.4798,161.24,161.1,5.1768]
[1730643009033,2.6198,161.24,161.11,5.0]
[1730643009229,2.6198,161.24,161.11,8.10862939]
[1730643009434,58.74840904,161.27,161.11,8.10862939]
[1730643009830,54.88840904,161.27,161.11,8.10862939]
[1730643010030,3.1015,161.25,161.21,3.1022]
[1730643012128,2.6855,161.29,161.21,3.1022]
[1730643012641,3.1014,161.26,161.21,3.1022]
[1730643013829,3.1015,161.25,161.21,3.1022]
[1730643014438,148.69876867,161.36,161.19,3.86]
[1730643014635,7.9696,161.35,161.2,4.0182]
[1730643014836,7.9696,161.35,161.26,3.1011]
[1730643015144,3.1006,161.3,161.26,3.1011]
[1730643015442,7.9696,161.35,161.28,3.1007]
[1730643015637,3.1,161.33,161.28,3.1007]